Cogmind - Beta 15 @@@ ROGUE MODE // 2025.07.31 @ 22:51:52 Player: H3-RMN Result: Destroyed by Autobeam Turret with Autobeam Performance ------------- Evolutions (0) 0 Regions Visited (3) 600 Robots Destroyed (28) 140 Value Destroyed (591) 591 Prototype IDs (0) 0 Alien Tech Used (0) 0 Bonus (-66) -66 TOTAL SCORE: 1265 Bonus ------- Follower Combat Kills 33 Friendly Fire -99 Cogmind --------- Core Integrity 0/250 Matter 126/300 Energy 100/100 System Corruption 0% Temperature Cool (24) Movement Treading (320) Ox2 Location -10/Subcaves Parts ------- > --- POWER (1) -------- (None) > --- PROPULSION (2) --- Light Treads Compact Wheel > --- UTILITY (2) ------ Improved Heat Sink High-capacity Storage Unit > --- WEAPON (2) ------- Light Cannon Grenade Launcher > --- INVENTORY (20) --- Backup Power III Compact Wheel Compact Wheel Large Matter Pod (150) Large Matter Pod (145) Experimental Sensor Array Transport Network Coupler EM Pulse Gun EM Pulse Gun EM Pulse Gun Light Assault Rifle Subdweller Machine Gun Subdweller Machine Gun Light Cannon Light Cannon Mining Laser Peak State ------------ > --- POWER ------------ Ion Engine > --- PROPULSION ------- Light Treads Compact Wheel > --- UTILITY ---------- Improved Heat Sink High-capacity Storage Unit > --- WEAPON ----------- EM Pulse Gun Light Cannon > --- INVENTORY -------- Light Ion Engine Backup Power III Light Treads Compact Wheel Compact Wheel Compact Wheel Large Matter Pod Large Matter Pod Experimental Sensor Array Transport Network Coupler EM Pulse Gun EM Pulse Gun Light Assault Rifle Subdweller Machine Gun Subdweller Machine Gun Light Cannon Light Cannon Grenade Launcher Mining Laser [Rating: 12] Favorites ----------- Power Ion Engine Engine Ion Engine Propulsion Light Treads Treads Light Treads Wheel Compact Wheel Utility High-capacity Storage Unit Device Improved Heat Sink Storage High-capacity Storage Unit Weapon Light Assault Rifle Energy Gun EM Pulse Gun Ballistic Gun Light Assault Rifle Ballistic Cannon Light Cannon Launcher Grenade Launcher Special Weapon Mining Laser Build | -11 -10 -10 -10 ------- Run | Yrd Mat Min Sub Slots Evolved . | . . . . Power . | . . . . Propulsion . | . . . . Utility . | . . . . Weapon . | . . . . Parts Attached 22 | 7 9 1 5 Power 4 | 1 3 . . Engine 4 | 1 3 . . Core . | . . . . Reactor . | . . . . Propulsion 7 | 2 2 . 3 Treads 3 | 1 1 . 1 Leg . | . . . . Wheel 4 | 1 1 . 2 Hover . | . . . . Flight . | . . . . Utility 4 | 2 2 . . Device 2 | 1 1 . . Storage 2 | 1 1 . . Processor . | . . . . Hackware . | . . . . Protection . | . . . . Artifact . | . . . . Weapon 7 | 2 2 1 2 Energy Gun 1 | . . . 1 Energy Cannon . | . . . . Ballistic Gun 3 | 2 . . 1 Ballistic Cannon 1 | . 1 . . Launcher 1 | . . 1 . Special Weapon 1 | . 1 . . Impact Weapon . | . . . . Slashing Weapon . | . . . . Piercing Weapon . | . . . . Special Melee Weapon . | . . . . Unidentified Prototypes . | . . . . Parts Lost 9 | . 5 . 4 Power 4 | . 2 . 2 Propulsion 3 | . 1 . 2 Utility 1 | . 1 . . Weapon 1 | . 1 . . Highest Loss Streak 3 | . 2 . 3 To Critical Strikes . | . . . . Average Backups 15 | 3 14 16 17 Power 1 | . 1 2 1 Propulsion 3 | 1 3 4 3 Utility 3 | . 2 3 4 Weapon 6 | . 6 7 8 Tool/Special . | . . . . Unused Backups 10 | . . . 10 Power . | . . . . Propulsion 1 | . . . 1 Utility 4 | . . . 4 Weapon 5 | . . . 5 Tool/Special . | . . . . Average Slot Usage (%) 99 | . 99 100 98 Engine 13 | . 13 14 14 Treads 12 | . 14 14 8 Wheel 14 | . 14 14 17 Device 13 | . 13 14 14 Storage 14 | . 14 14 14 Energy Gun 1 | . . . 6 Ballistic Gun 12 | . 25 . 3 Ballistic Cannon 7 | . 2 14 9 Launcher 6 | . . 14 7 Peak Build Rating 12 | 9 11 11 12 Average Rating 10 | 5 10 10 11 On Entrance 7 | . 9 10 11 Naked Turns . | . . . . Heaviest Build 52 | 11 50 52 52 Greatest Support 32 | 10 16 16 32 Greatest Overweight (x) 4 | 1 4 3 3 Average Overweight (x) 2 | . 2 3 2 Largest Inventory Capacity 20 | 8 20 20 20 Average Capacity 19 | 6 19 20 20 Most Carried 19 | 6 19 17 19 Average Carried 15 | 3 15 16 17 Final Capacity 20 | 8 20 20 20 Final Carried 17 | 6 16 17 16 Class Distribution -------------------- 100% | Mutant Dominant Class ---------------- Mutant | -10/Materials Mutant | -10/Mines Mutant | -10/Subcaves Resources | -11 -10 -10 -10 ----------- Run | Yrd Mat Min Sub Matter Collected 964 | 282 521 91 70 Remotely . | . . . . Salvage Created 671 | 76 497 34 64 Parts 46 | 5 30 3 8 Haulers Intercepted 1 | . 1 . . Recyclers Shooed 2 | . 2 . . Parts Field Recycled . | . . . . Retrieved Matter . | . . . . Parts Self-Destructed 6 | . . . 6 Prevented . | . . . . Kills | -11 -10 -10 -10 ------- Run | Yrd Mat Min Sub Combat Hostiles Destroyed 25 | . 13 6 6 Guns 13 | . 12 . 1 Cannons 2 | . 1 . 1 AOE 10 | . . 6 4 Classes Destroyed 6 | 2 3 . 1 Tunneler 1 | 1 . . . Hauler 1 | . 1 . . Recycler 1 | 1 . . . Swarmer 13 | . 3 6 4 Grunt 10 | . 10 . . Subdweller 2 | . . . 2 Best Kill Streak 6 | 1 6 3 4 Combat Bots Only 6 | . 6 3 4 Max Kills in Single Turn 2 | 1 1 2 2 Gunslinging . | . . . . Exploded 2 | . . 2 2 Melee . | . . . . Uniques/NPCs Destroyed . | . . . . Combat | -11 -10 -10 -10 -------- Run | Yrd Mat Min Sub Hostile Shots Fired 151 | . 95 8 48 Missed 45 | . 31 4 10 Hits 106 | . 64 4 38 Projectile 106 | . 64 4 38 Critical Strikes 2 | . 1 . 1 Damage Taken 1166 | . 753 58 355 Core 251 | . 173 . 78 Absorbed by Shields . | . . . . Core Remaining (%) 100 | 100 . . . Volleys Fired 130 | 6 98 4 22 Largest 2 | 2 2 1 2 Hottest 100 | 40 100 30 100 Shots Fired 235 | 12 187 4 32 Gun 198 | 12 178 . 8 Cannon 17 | . 7 . 10 Launcher 15 | . . 4 11 Special 5 | . 2 . 3 Kinetic 207 | 12 185 . 10 Thermal 5 | . 2 . 3 Explosive 15 | . . 4 11 Electromagnetic 8 | . . . 8 Robot Hit Streak 10 | 5 10 . 6 Robot Miss Streak 5 | 1 5 . 2 Penetration Max . | . . . . Secondary Targets 1 | . 1 . . Max Gunslinging Chain 1 | . 1 . . Shots Hit Robots 140 | 9 115 . 16 Core Hits 58 | 4 33 8 13 Critical Kills . | . . . . Critical Parts Destroyed 3 | . 3 . . Critical Strikes 3 | . 3 . . Destroy 3 | . 3 . . Melee Attacks . | . . . . Impact . | . . . . Slashing . | . . . . Piercing . | . . . . Sneak Attacks . | . . . . Combat Hostiles . | . . . . Follow-up Attacks . | . . . . Damage Inflicted 1918 | 73 943 253 649 Guns 1084 | 73 924 . 87 Cannons 163 | . 19 . 144 Explosions 671 | . . 253 418 Melee . | . . . . Ramming . | . . . . Kinetic 1160 | 73 943 . 144 Thermal 41 | . . . 41 Explosive 630 | . . 253 377 Electromagnetic 87 | . . . 87 Impact . | . . . . Slashing . | . . . . Piercing . | . . . . Highest Corruption . | . . . . Average Corruption . | . . . . Corruption Purged . | . . . . Corruption Blocked . | . . . . Overload Shots . | . . . . Overflow Damage 29 | . . . 29 Projectiles . | . . . . Explosions 29 | . . . 29 Melee . | . . . . Knockbacks 1 | . . . 1 Impact . | . . . . Kinetic 1 | . . . 1 Secondary . | . . . . Self-Inflicted Damage 82 | . . 26 56 Shots 4 | . . 2 2 Rammed . | . . . . Targets Rammed . | . . . . Kicked . | . . . . Crushed . | . . . . Highest Temperature 23 | . 23 . 2 Average Temperature 11 | . 12 . 2 Received Heat Transfer 537 | . 396 . 141 Siege Activations . | . . . . Martial Activations . | . . . . Shielding Activations . | . . . . Robots Disrupted . | . . . . Combat Hostiles . | . . . . Robots Corrupted . | . . . . Combat Hostiles . | . . . . Parts Fried . | . . . . Impact Corruptions . | . . . . Robots Melted . | . . . . Combat Hostiles . | . . . . Parts Melted . | . . . . Heat Transferred 100 | . . . 100 Parts Sabotaged . | . . . . Parts Stolen . | . . . . Parts Stripped . | . . . . Power Chain Reactions 1 | . . . 1 Alert | -11 -10 -10 -10 ------- Run | Yrd Mat Min Sub Maximum Alert Level . | . . . . Low Security (%) 100 | 100 100 100 . Level 1 . | . . . . Level 2 . | . . . . Level 3 . | . . . . Level 4 . | . . . . Level 5 . | . . . . High Security . | . . . . Max Security . | . . . . Peak Influence 185 | 5 178 185 . Initial 54 | . 3 54 . Average 67 | . 56 95 . Influence Increases 727 | 10 365 161 191 Destroy 0b10 Robot/C 480 | . 260 120 100 Destroy 0b10 Robot/NC 15 | 10 5 . . Destroy Leader 72 | . 52 20 . Allied During Kill 1 | . . . 1 Successful Hack 16 | . 16 . . Destroy Structure 23 | . 2 21 . Lose Combat Pursuer 120 | . 30 . 90 Influence Decreases 666 | 5 230 300 131 Entered New Map 89 | . 2 86 1 Time Decay 487 | 5 188 214 80 Lost Part 70 | . 40 . 30 Lost Ally 20 | . . . 20 Squads Dispatched 3 | . 2 1 . Investigation 2 | . 2 . . Extermination . | . . . . Reinforcement . | . . . . Assault 1 | . . 1 . Garrison . | . . . . Intercept . | . . . . Searches Triggered . | . . . . Construction Impeded . | . . . . Haulers Reinforced . | . . . . Active Scanning Responses . | . . . . Cargo Convoy Interrupts . | . . . . Stealth | -11 -10 -10 -10 --------- Run | Yrd Mat Min Sub Distress Signals 2 | . 2 . . Communications Jammed . | . . . . Distress Signals . | . . . . Times Spotted 44 | . 26 6 12 Peak Tracking Total 7 | . 7 3 6 Tactical Retreats 3 | . 1 . 2 Traps | -11 -10 -10 -10 ------- Run | Yrd Mat Min Sub Traps Triggered . | . . . . Indirectly . | . . . . Trap Hack Attempts . | . . . . Triggered . | . . . . Disarmed . | . . . . Reprogrammed . | . . . . Reused . | . . . . Traps Extracted . | . . . . Installed . | . . . . Triggered . | . . . . Machines | -11 -10 -10 -10 ---------- Run | Yrd Mat Min Sub Machines Disabled 4 | . 1 . 3 Max in Single Turn 3 | . 1 . 3 Machines Repaired . | . . . . Machines Dismantled . | . . . . Machines Sabotaged . | . . . . Overloaded Fab Kills . | . . . . Hacking | -11 -10 -10 -10 --------- Run | Yrd Mat Min Sub Machines Accessed 5 | . 5 . . Terminals 4 | . 4 . . Fabricators . | . . . . Repair Stations 1 | . 1 . . Recycling Units . | . . . . Scanalyzers . | . . . . Garrison Access . | . . . . Total Hacks 10 | . 10 . . Successful 1 | . 1 . . Failed 9 | . 9 . . Catastrophic 3 | . 3 . . Database Lockouts . | . . . . Manual 8 | . 8 . . Terminals 8 | . 8 . . Fabricators . | . . . . Repair Stations 2 | . 2 . . Recycling Units . | . . . . Scanalyzers . | . . . . Garrison Access . | . . . . Terminal Hacks . | . . . . Fabricator Hacks . | . . . . Repair Station Hacks 1 | . 1 . . Refit 1 | . 1 . . Recycling Unit Hacks . | . . . . Scanalyzer . | . . . . Garrison Access Hacks . | . . . . Unauthorized Hacks . | . . . . Terminals . | . . . . Fabricators . | . . . . Repair Stations . | . . . . Recycling Units . | . . . . Scanalyzers . | . . . . Garrison Access . | . . . . Data Cores Recovered . | . . . . Used . | . . . . Hacking Detections 5 | . 5 . . Full Trace Events 3 | . 3 . . Feedback Events . | . . . . Feedback Blocked . | . . . . Robot Schematics Acquired . | . . . . Robots Built . | . . . . Authchips . | . . . . Time . | . . . . Total Robot Build Rating . | . . . . Part Schematics Acquired . | . . . . Parts Built . | . . . . Authchips . | . . . . Time . | . . . . Total Part Build Rating . | . . . . Parts Repaired . | . . . . Time . | . . . . Parts Recycled . | . . . . Recycled Matter . | . . . . Retrieved Matter . | . . . . Retrieved Components . | . . . . Parts Scanalyzed . | . . . . Part Schematics Acquired . | . . . . Parts Damaged . | . . . . Bothacking | -11 -10 -10 -10 ------------ Run | Yrd Mat Min Sub Used RIF Installer . | . . . . Robots Hacked . | . . . . Non-combat . | . . . . Combat . | . . . . Robot Hacks Applied . | . . . . Relay Couplers Released . | . . . . Fabnet Peak Effective % . | . . . . Robots Rewired . | . . . . Allies Hacked . | . . . . Hacks Repelled . | . . . . Allies | -11 -10 -10 -10 -------- Run | Yrd Mat Min Sub Total Allies 1 | . . 1 . Largest Group 1 | . . 1 1 Highest-Rated Group 31 | . . 31 31 Highest-Rated Ally 31 | . . 31 31 Total Orders . | . . . . Ally Attacks 13 | . . . 13 Total Damage 208 | . . . 208 Kills 1 | . . . 1 Allies Corrupted . | . . . . Allies Melted . | . . . . Intel | -11 -10 -10 -10 ------- Run | Yrd Mat Min Sub Active Infowar (turns) 368 | 10 358 . . Terrain 368 | 10 358 . . Robot Analysis Total . | . . . . Derelict Logs Recovered 3 | . . 3 . Drone Launches . | . . . . Drone Recoveries . | . . . . Exploration | -11 -10 -10 -10 ------------- Run | Yrd Mat Min Sub Turns Passed 1560 | 77 678 449 356 Spaces Moved 805 | 54 276 263 212 Core 3 | 3 . . . Treads . | . . . . Legs . | . . . . Wheels 802 | 51 276 263 212 Hover . | . . . . Flight . | . . . . Fastest Speed 50 | 50 95 145 115 Average Speed 133 | 80 133 145 131 Slowest Speed 145 | 95 145 145 145 Overloaded Moves . | . . . . Propulsion Burnouts . | . . . . Robots Hopped . | . . . . Potential Cave-ins . | . . . . Cave-ins Triggered . | . . . . Exploration Rate (%) 31 | 4 41 71 10 Regions Visited 3 Branch Regions 2 Pre-discovered Areas . | . . . . Known Exits Taken 1 | . . 1 . Unknown Exits Taken 2 | 1 1 . . Scrap Searched 1 | . . 1 . Spaces Dug 25 | . 2 14 9 Terrain Destroyed 79 | . 2 21 56 Melee . | . . . . Projectile 2 | . 2 . . AOE 77 | . . 21 56 Terrain Rammed . | . . . . Walls Destroyed . | . . . . Machines Disabled . | . . . . Actions | -11 -10 -10 -10 --------- Run | Yrd Mat Min Sub Total 1080 | 74 430 326 250 Wait 92 | 2 27 58 5 Move 802 | 53 275 262 212 Hop . | . . . . Pick Up 23 | 6 14 1 2 Fast Attach 7 | 7 . . . Attach 9 | . 6 . 3 Detach 2 | . 2 . . Swap 12 | . 5 1 6 Drop 3 | . 3 . . Fire 130 | 6 98 4 22 Melee . | . . . . Ram . | . . . . Kick . | . . . . Crush . | . . . . Escape Stasis . | . . . . Rewire . | . . . . Trap . | . . . . Miscellaneous . | . . . . Route ------- -11/Scrapyard -10/Materials (discovered 2 exits: [*Mat] / [*Min]) -10/Mines (discovered 3 exits: [*Mat x2] / *Sub) -10/Subcaves (discovered 1 exit: [*Mat]) History --------- Turn | Location | Event 13 | -11/Scrapyard | Discovered new exit (range 16) 78 | -11/Scrapyard | Entered Materials 264 | -10/Materials | Discovered new exit (range 15) 304 | -10/Materials | Discovered new exit (range 13) 309 | -10/Materials | Build established: Mutant 582 | -10/Materials | Core integrity fell below 50% 756 | -10/Materials | Entered Mines 781 | -10/Mines | Discovered new exit (range 13) 905 | -10/Mines | Discovered new exit (range 7) 908 | -10/Mines | Met a Derelict testing a Signal Generator 946 | -10/Mines | Found a damaged Exp. Sensor Array with a note attached 949 | -10/Mines | Found Prototype Device 983 | -10/Mines | Identified exit to Subcaves 1205 | -10/Mines | Entered Subcaves 1205 | -10/Subcaves | Accompanied by 1 ally 1206 | -10/Subcaves | Approached by a straggling Scientist 1272 | -10/Subcaves | Discovered new exit (range 9) 1397 | -10/Subcaves | Core integrity fell below 20% 1435 | -10/Subcaves | Lost 3 parts (1p2n) 1561 | -10/Subcaves | Destroyed by Autobeam Turret with Autobeam Last Messages --------------- 01390_ P1-ASZ(g) destroyed. 01394_ Destroyed Flight Unit. 01394_ S-10 Pest destroyed. 01396_ Lgt. Treads destroyed. 01396_ Destroyed Lgt. Treads. 01396_ S-10 Pest destroyed. 01398_ Flight Unit fries itself beyond repair. 01401_ Subatomizers dissect the Heat Sink. 01402_ Heat Sink fries itself beyond repair. 01404_ Ion Engine destroyed. 01404_ S-10 Pest destroyed. 01404_ Destroyed Lgt. Ion Engine. 01404_ S-10 Pest destroyed. 01405_ Imp. Ion Engine fries itself beyond repair. W7-4Z0(c): "I think it's somewhere south of here" 01461_ The unstable cave ceiling collapses. W7-4Z0(c): "I think it's somewhere south of here" 01520_ Acquired 5 matter. 01557_ Machine disabled. 01561_ Lgt. Ion Engine destroyed. Map ----- +----------------------------------------------------+ | ?????????????????????????????????????????????????? | | ?????????????????????????????????????????????????? | | ?????????????????????????????????????????????????? | | ?????????????????????????????????????????????????? | | ?????????????????????????????????????????????????? | | ?????????????????????????????????????????????????? | | ?????????????????????????????????????????????????? | | ?????????????????????????????????????????????????? | | ?????????????????????????????????????????????????? | | ?????????????????????????????????????????????????? | | ?????????????????????????????????????????????????? | | ?????????????????????????????????????????????????? | | ?????????????????? #####?????????????????????????? | | ???????????????? ?????????????????????????? | | ?????????????? ?????????????????????????? | | ?????????????? ?????????????????????????? | | ??????????????? % ?????????????????????????? | | ???????????????? % ????????????????????????? | | ?????????????????# ????????????????????????? | | ??????????????????# ????????????????????????? | | ???????????????????# %????????????????????????? | | ????????????????????# ###?????????????????????? | | ?????????????######## %# ##????????????????????? | | ????????????## # #?###?###????????????? | | ????????????# # ### ### ##???????????? | | ????????????# @ ## ## #???????????? | | ????????????# # ## ##???????????? | | ???????????## ## #????????????? | | ???????????#" ?## #????????????? | | ???????????# # #??#c #????????????? | | ???????????? ?##????# #????????????? | | ????????????" t t ????????## #????????????? | | ????????????" ??????????## ##???????????? | | ?????????????" ???????###### #??????###### | | ?????????????# ????????# #?????## ## | | ??????????????#????????## #??#### | | ??????????????????????## ##?## | | ?????????????????????## ### #??# # | | ?????????????????????# ##?## ####??### # | | ?????????????????????### ##### ######### | | ?????????????????????### ## ## ## | | ????????????????????## | | ????????????????????# | | ????????????????????### ## # ## < | | ??????????????????????## ######### | | ???????????????????????## ##???# ####### | | ????????????????????????## ### #??## ##???? | | ?????????????????????????# #### ##?# #???? | | ?????????????????????????# ### ### #???? | | ?????????????????????????# ## ## #???? | +----------------------------------------------------+ Best States ------------- Heat Dissipation 39 Energy Generation 10 Energy Capacity 250 Matter Stores 300 Matter Capacity 300 Sight Range 16 Terrain Scan Range 16 Terrain Scan Density 10 Evasion (%) 44 Recoil Reduction 1 Item Schematics ----------------- None Robot Schematics ------------------ None Fabricated ------------ Nothing Repaired ---------- Nothing Alien Tech Used ----------------- None Achievements -------------- None Challenges ------------ None Game ------ Seed ActuatorTachyonMace Manual? 0 Play Time 00:11:15 Cumulative 757.0 hours Start 2025.07.31 @ 22:38:51 End 2025.07.31 @ 22:51:52 Sessions 1 Manual Loads 0 Difficulty Rogue Special Mode None Game No. 289 Rogue 285 Adventurer 4 Explorer 0 Win Type - Total 12 Types 7/1/1/1/0/1/0/0/0/1 Lore% 94 Gallery% 89 Achievement% 87 Wizard Run 0 Options --------- Layout 0 ASCII 0 Keyboard 0 Movement Numpad Keybinds 0 Fullscreen 2 Font 18/CogNarrow Map View 76x50 Zoom Use 0% Tactical HUD 1 Map Filters SHIFT_HUE(110) Filters SHIFT_HUE(250) Steam 1 RUN: 30f92fc1-d57b-435a-9327-02d5bde27a89